bitfinex/quotes_BTCUSD_20240717
["timestamp","ask_amount","ask_price","bid_price","bid_amount"]
[1721185941915,1.87551394,65575.0,65574.0,0.009207]
[1721185942454,1.83335353,65575.0,65574.0,0.009207]
[1721185942682,1.90658545,65575.0,65574.0,0.009207]
[1721185942921,1.90658542,65575.0,65574.0,0.009207]
[1721185943167,2.26157942,65575.0,65574.0,0.009207]
[1721185943402,2.26157483,65575.0,65574.0,0.009207]
[1721185943664,2.18047099,65575.0,65574.0,0.009207]
[1721185943911,2.18042162,65575.0,65574.0,0.009207]
[1721185944147,2.24808426,65575.0,65574.0,0.009207]
[1721185944380,1.87542762,65575.0,65574.0,0.009207]
[1721185944615,1.86142762,65575.0,65574.0,0.009207]
[1721185944839,1.87542762,65575.0,65574.0,0.009207]
[1721185945569,1.90652843,65575.0,65574.0,0.009207]
[1721185945809,1.90653439,65575.0,65574.0,0.009207]
[1721185946926,1.92053439,65575.0,65574.0,0.009207]
[1721185947132,1.86033439,65575.0,65574.0,0.009207]
[1721185947311,1.66893456,65575.0,65574.0,0.009207]
[1721185948175,1.68293456,65575.0,65574.0,0.009207]
[1721185948324,1.66893456,65575.0,65574.0,0.009207]
[1721185948674,1.68293456,65575.0,65574.0,0.009207]
[1721185948879,1.68291608,65575.0,65574.0,0.009207]
[1721185950098,1.66891608,65575.0,65574.0,0.009207]
[1721185950464,1.81261608,65575.0,65574.0,0.009207]
[1721185950862,1.82661608,65575.0,65574.0,0.009207]
[1721185951275,1.84961608,65575.0,65574.0,0.009207]
[1721185951687,1.98996565,65575.0,65574.0,0.009207]
[1721185951890,2.00396565,65575.0,65574.0,0.009207]
[1721185952093,2.05397692,65575.0,65574.0,0.009207]
[1721185952795,2.00397692,65575.0,65574.0,0.009207]
[1721185953398,1.98997692,65575.0,65574.0,0.009207]
[1721185953602,1.84962735,65575.0,65574.0,0.009207]
[1721185954016,1.83562735,65575.0,65574.0,0.009207]
[1721185954421,1.84962735,65575.0,65574.0,0.009207]
[1721185954623,1.77282735,65575.0,65574.0,0.009207]
[1721185955038,1.78682735,65575.0,65574.0,0.009207]
[1721185955261,1.78682107,65575.0,65574.0,0.009207]
[1721185956487,1.77282107,65575.0,65574.0,0.009207]
[1721185956904,1.78682107,65575.0,65574.0,0.009207]
[1721185958118,1.70592107,65575.0,65574.0,0.009207]
[1721185958569,1.73461136,65575.0,65574.0,0.009207]
[1721185961277,1.73545136,65575.0,65574.0,0.009207]
[1721185961512,1.3787772,65575.0,65574.0,0.072107]
[1721185961750,0.62671274,65575.0,65574.0,0.151807]
[1721185961985,0.62671274,65575.0,65574.0,0.1669877]
[1721185962234,0.16922174,65575.0,65574.0,0.1669877]
[1721185962744,0.32171874,65575.0,65574.0,0.17167085]
[1721185963448,0.30771874,65575.0,65574.0,0.17167085]
[1721185963697,0.32171874,65575.0,65574.0,0.17167085]
[1721185963893,0.16922174,65575.0,65574.0,0.17167085]
[1721185964020,0.17622174,65575.0,65574.0,0.17167085]
[1721185964452,0.32871874,65575.0,65574.0,0.17167085]
[1721185964855,0.30771874,65575.0,65574.0,0.17167085]
[1721185965272,0.31371874,65575.0,65574.0,0.17167085]
[1721185965884,1.22870074,65575.0,65574.0,0.07679015]
[1721185966279,1.22870074,65575.0,65574.0,0.072107]
[1721185966901,1.22870074,65575.0,65574.0,0.009207]
[1721185967102,0.92370674,65575.0,65574.0,0.009207]
[1721185967872,0.61871274,65575.0,65574.0,0.153707]
[1721185968084,0.61871274,65575.0,65574.0,0.17414858]
[1721185968291,0.92370674,65575.0,65574.0,0.17414858]
[1721185968493,0.92370674,65575.0,65574.0,0.1690777]
[1721185968693,0.61871274,65575.0,65574.0,0.1690777]
[1721185969046,0.92370674,65575.0,65574.0,0.1690777]
[1721185970259,1.68069474,65575.0,65574.0,0.009207]
[1721185970471,1.54657777,65575.0,65574.0,0.009207]
[1721185970988,1.39957777,65575.0,65574.0,0.009207]
[1721185971189,1.39957769,65575.0,65574.0,0.009207]
[1721185971600,1.39957768,65575.0,65574.0,0.009207]
[1721185972187,1.39357768,65575.0,65574.0,0.009207]
[1721185972626,1.39358072,65575.0,65574.0,0.009207]
[1721185973214,1.39358072,65575.0,65574.0,0.149507]
[1721185973413,1.07295145,65575.0,65574.0,0.1644577]
[1721185973618,1.03070674,65575.0,65574.0,0.1644577]
[1721185974024,0.93070674,65575.0,65574.0,0.1644577]
[1721185978177,0.93070674,65575.0,65574.0,0.0870577]
[1721185978178,1.23570074,65575.0,65574.0,0.0870577]
[1721185978528,1.27793791,65575.0,65574.0,0.072107]
[1721185978737,1.27793791,65575.0,65574.0,0.009207]
[1721185979716,1.52710246,65575.0,65574.0,0.009207]
[1721185979903,1.82643191,65575.0,65574.0,0.009207]
[1721185980196,1.8550977,65575.0,65574.0,0.009207]
[1721185980395,2.00026594,65575.0,65574.0,0.009207]
[1721185980654,1.91286053,65575.0,65574.0,0.009207]
[1721185980801,2.00030339,65575.0,65574.0,0.009207]
[1721185981557,2.02289918,65575.0,65574.0,0.009207]
[1721185981965,1.95511182,65575.0,65574.0,0.009207]
[1721185982284,2.04549496,65575.0,65574.0,0.009207]
[1721185983450,2.03243893,65575.0,65574.0,0.009207]
[1721185983670,2.04643893,65575.0,65574.0,0.009207]
[1721185984224,1.95604556,65575.0,65574.0,0.009207]
[1721185984431,2.26103956,65575.0,65574.0,0.009207]
[1721185984626,1.95604556,65575.0,65574.0,0.009207]
[1721185985678,2.11039513,65575.0,65574.0,0.009207]
[1721185985879,2.41538913,65575.0,65574.0,0.009207]
[1721185986209,2.56178913,65575.0,65574.0,0.009207]
[1721185986483,2.54781831,65575.0,65574.0,0.009207]
[1721185986661,2.24282431,65575.0,65574.0,0.009207]
[1721185986862,2.25682431,65575.0,65574.0,0.009207]
[1721185987225,2.39346874,65575.0,65574.0,0.009207]
[1721185987424,2.40746874,65575.0,65574.0,0.009207]
[1721185988136,2.11647474,65575.0,65574.0,0.009207]
[1721185988340,1.99707474,65575.0,65574.0,0.009207]
[1721185989667,1.99705431,65575.0,65574.0,0.009207]
[1721185991000,1.60896031,65575.0,65574.0,0.156907]
[1721185991201,1.60896031,65575.0,65574.0,0.1725977]
[1721185991202,1.69931727,65575.0,65574.0,0.1725977]
[1721185991400,1.69931727,65575.0,65574.0,0.009207]
[1721185991712,1.69930226,65575.0,65574.0,0.009207]
[1721185991938,1.60894651,65575.0,65574.0,0.009207]
[1721185992609,1.91394051,65575.0,65574.0,0.009207]
[1721185992920,1.99884047,65575.0,65574.0,0.009207]
[1721185993124,1.9762579,65575.0,65574.0,0.009207]
[1721185993330,2.01284047,65575.0,65574.0,0.009207]
[1721185993876,2.02684047,65575.0,65574.0,0.009207]
[1721185995770,2.00422801,65575.0,65574.0,0.009207]
[1721185996012,1.84376053,65575.0,65574.0,0.009207]
[1721185996396,1.85776053,65575.0,65574.0,0.009207]
[1721185996981,1.97065581,65575.0,65574.0,0.009207]
[1721185998295,1.85776053,65575.0,65574.0,0.009207]
[1721185998664,1.97063965,65575.0,65574.0,0.009207]
[1721185999074,1.85776053,65575.0,65574.0,0.009207]
[1721185999290,1.97062749,65575.0,65574.0,0.009207]
[1721185999499,2.0621101,65575.0,65574.0,0.009207]
[1721186000002,1.90776053,65575.0,65574.0,0.009207]
[1721186000664,1.97526053,65575.0,65574.0,0.009207]
[1721186001041,1.98926053,65575.0,65574.0,0.009207]
[1721186001640,1.93926053,65575.0,65574.0,0.009207]
[1721186001925,1.98926053,65575.0,65574.0,0.009207]
[1721186002586,1.93926053,65575.0,65574.0,0.009207]
[1721186002781,1.98926053,65575.0,65574.0,0.009207]
[1721186004882,1.93926053,65575.0,65574.0,0.009207]
[1721186006082,1.85776053,65575.0,65574.0,0.009207]
[1721186006943,1.55276653,65575.0,65574.0,0.009207]
[1721186007142,1.64311169,65575.0,65574.0,0.009207]
[1721186007367,1.64311212,65575.0,65574.0,0.009207]
[1721186007905,1.33226653,65575.0,65574.0,0.009207]
[1721186008651,1.31826653,65575.0,65574.0,0.009207]
[1721186008810,1.40861212,65575.0,65574.0,0.009207]
[1721186009027,1.53876653,65575.0,65574.0,0.009207]
[1721186009364,1.62914053,65575.0,65574.0,0.009207]
[1721186009589,1.62914053,65575.0,65574.0,0.0240477]
[1721186009803,1.64314053,65575.0,65574.0,0.0240477]
[1721186010484,1.64314053,65575.0,65574.0,0.009207]
[1721186010911,1.64318077,65575.0,65574.0,0.009207]
[1721186011439,1.55276653,65575.0,65574.0,0.009207]
[1721186012474,1.60659805,65575.0,65574.0,0.009207]
[1721186013044,1.60659292,65575.0,65574.0,0.009207]
[1721186013343,1.53876653,65575.0,65574.0,0.009207]
[1721186013809,1.53876653,65575.0,65574.0,0.0240477]
[1721186014548,1.55276653,65575.0,65574.0,0.0240477]
[1721186014752,1.55276653,65575.0,65574.0,0.009207]
[1721186015214,1.66581052,65575.0,65574.0,0.009207]
[1721186015416,1.55276653,65575.0,65574.0,0.009207]
[1721186015655,2.30655453,65575.0,65574.0,0.009207]
[1721186015838,1.98756053,65575.0,65574.0,0.009207]
[1721186015967,2.00156053,65575.0,65574.0,0.009207]
[1721186016675,1.93546053,65575.0,65574.0,0.009207]
[1721186017836,1.92146053,65575.0,65574.0,0.009207]
[1721186018074,1.93546053,65575.0,65574.0,0.009207]
[1721186018253,1.92146053,65575.0,65574.0,0.009207]
[1721186018408,1.84376053,65575.0,65574.0,0.009207]
[1721186018607,1.85776053,65575.0,65574.0,0.009207]
[1721186019525,1.92046053,65575.0,65574.0,0.009207]
[1721186020331,1.97046053,65575.0,65574.0,0.009207]
[1721186020761,1.92046053,65575.0,65574.0,0.009207]
[1721186022645,2.05627057,65575.0,65574.0,0.009207]
[1721186024030,1.99357057,65575.0,65574.0,0.009207]
[1721186024414,1.85776053,65575.0,65574.0,0.009207]
[1721186027771,2.16275453,65575.0,65574.0,0.009207]
[1721186028160,2.16226072,65575.0,65574.0,0.009207]
[1721186028537,2.21226072,65575.0,65574.0,0.009207]
[1721186028735,2.16226072,65575.0,65574.0,0.009207]
[1721186028899,2.21226072,65575.0,65574.0,0.009207]
[1721186029517,2.21226072,65575.0,65574.0,1e-06]
[1721186029518,2.51151029,65575.0,65574.0,1e-06]
[1721186029724,1.727643,65568.0,65567.0,0.009207]
[1721186029949,2.53501857,65568.0,65567.0,0.009207]
[1721186030157,1.372995,65550.0,65547.0,0.00277097]
[1721186030358,1.22226674,65550.0,65549.0,0.17297083]
[1721186030562,0.94595069,65550.0,65549.0,0.17297083]
[1721186030767,0.30693674,65550.0,65549.0,0.17297083]
[1721186030970,0.04529911,65554.0,65550.0,0.138]
[1721186031176,0.61202774,65553.0,65552.0,0.21517479]
[1721186031426,0.61202774,65553.0,65552.0,0.138]
[1721186031427,0.91712574,65553.0,65552.0,0.138]
[1721186032394,0.61902774,65553.0,65552.0,0.138]
[1721186032799,0.92412574,65553.0,65552.0,0.138]
[1721186033189,0.95294741,65553.0,65552.0,0.138]
[1721186033434,0.92412574,65553.0,65552.0,0.138]
[1721186033667,0.95294557,65553.0,65552.0,0.138]
[1721186033875,0.92412574,65553.0,65552.0,0.138]
[1721186034069,0.95296446,65553.0,65552.0,0.138]
[1721186034278,0.92412574,65553.0,65552.0,0.138]
[1721186035585,1.22922374,65553.0,65552.0,0.138]
[1721186035789,1.30334688,65553.0,65552.0,0.138]
[1721186036204,1.25805387,65553.0,65552.0,0.138]
[1721186036619,1.30334688,65553.0,65552.0,0.063]
[1721186037922,1.25805387,65553.0,65552.0,0.063]
[1721186038861,1.068,65543.0,65542.0,0.03497083]
[1721186039066,1.54288174,65543.0,65542.0,0.03497083]
[1721186039222,1.32238174,65543.0,65542.0,0.03497083]
[1721186039419,1.69575229,65543.0,65542.0,0.03497083]
[1721186039618,1.72458955,65543.0,65542.0,0.03497083]
[1721186040387,1.351219,65543.0,65542.0,0.04471969]
[1721186040590,1.33638174,65543.0,65542.0,0.04471969]
[1721186041040,1.33638174,65543.0,65542.0,0.03497083]
[1721186041251,1.35038174,65543.0,65542.0,0.03497083]
[1721186041450,1.41152074,65543.0,65542.0,0.03497083]
[1721186041858,1.35038174,65543.0,65542.0,0.03497083]
[1721186042503,1.79682474,65543.0,65542.0,0.03497083]
[1721186042717,1.78590754,65543.0,65542.0,0.03497083]
[1721186043345,1.83105956,65543.0,65542.0,0.03497083]
[1721186043544,1.80305422,65543.0,65542.0,0.03497083]
[1721186043884,1.75790754,65543.0,65542.0,0.03497083]
[1721186044088,1.77190754,65543.0,65542.0,0.03497083]
[1721186044358,1.67040754,65543.0,65542.0,0.03497083]
[1721186044577,1.64152474,65543.0,65542.0,0.03497083]
[1721186045812,1.64152474,65543.0,65542.0,0.17837083]
[1721186045813,1.03123874,65543.0,65542.0,0.17837083]
[1721186045962,1.03123874,65543.0,65542.0,0.19627969]
[1721186046605,1.01723874,65543.0,65542.0,0.19627969]
[1721186046805,1.01723874,65543.0,65542.0,0.17837083]
[1721186046806,1.32238174,65543.0,65542.0,0.17837083]
[1721186047010,1.33638174,65543.0,65542.0,0.03497083]
[1721186047710,1.35038174,65543.0,65542.0,0.03497083]
[1721186047929,1.33638174,65543.0,65542.0,0.03497083]
[1721186048365,1.57088174,65543.0,65542.0,0.03497083]
[1721186048558,1.55688174,65543.0,65542.0,0.03497083]
[1721186049728,2.01637431,65543.0,65542.0,0.03497083]
[1721186050021,2.08224755,65543.0,65542.0,0.03497083]
[1721186050170,2.05424755,65543.0,65542.0,0.03497083]
[1721186050576,2.06824755,65543.0,65542.0,0.03497083]
[1721186051156,2.12727572,65543.0,65542.0,0.03497083]
[1721186051514,1.92789798,65543.0,65542.0,0.03497083]
[1721186051655,1.89902474,65543.0,65542.0,0.03497083]
[1721186052092,1.87102474,65543.0,65542.0,0.03497083]
[1721186053129,1.56588174,65543.0,65542.0,0.03497083]
[1721186053436,1.56588174,65543.0,65542.0,0.10037083]
[1721186053437,1.54288174,65543.0,65542.0,0.10037083]
[1721186053722,1.55688174,65543.0,65542.0,0.10037083]
[1721186054158,1.57088174,65543.0,65542.0,0.10037083]
[1721186054535,0.71209574,65543.0,65542.0,0.10037083]
[1721186054742,1.03123874,65543.0,65542.0,0.10037083]
[1721186054943,1.55688174,65543.0,65542.0,0.10037083]
[1721186055148,1.55688174,65543.0,65542.0,0.03497083]
[1721186056211,1.57988174,65543.0,65542.0,0.03497083]
[1721186056338,1.964529,65543.0,65542.0,0.03497083]
[1721186056538,1.881729,65543.0,65542.0,0.03497083]
[1721186056983,1.553586,65543.0,65542.0,0.09599483]
[1721186057169,1.553586,65543.0,65542.0,0.10566609]
[1721186057528,1.539586,65543.0,65542.0,0.10566609]
[1721186057860,1.553586,65543.0,65542.0,0.09599483]
[1721186058491,1.567586,65543.0,65542.0,0.09599483]
[1721186058629,1.013943,65543.0,65542.0,0.09599483]
[1721186058829,1.319086,65543.0,65542.0,0.17339483]
[1721186059030,1.333086,65543.0,65542.0,0.17339483]
[1721186059255,1.333086,65543.0,65542.0,0.19080609]
[1721186059482,1.553586,65543.0,65542.0,0.15583526]
[1721186059843,1.553586,65543.0,65542.0,0.000924]
[1721186060041,1.800729,65543.0,65542.0,0.000924]
[1721186060544,1.98970275,65543.0,65542.0,0.000924]
[1721186060781,1.960829,65543.0,65542.0,0.000924]
[1721186060986,1.98970277,65543.0,65542.0,0.000924]
[1721186061194,2.13005234,65543.0,65542.0,0.000924]
[1721186061591,2.14405234,65543.0,65542.0,0.000924]
[1721186062055,1.76920277,65543.0,65542.0,0.000924]
[1721186062268,2.00370277,65543.0,65542.0,0.000924]
[1721186062415,2.05370277,65543.0,65542.0,0.000924]
[1721186062993,1.78320277,65543.0,65542.0,0.000924]
[1721186063139,2.00370277,65543.0,65542.0,0.000924]
[1721186063350,2.15805234,65543.0,65542.0,0.000924]
[1721186063970,2.00370277,65543.0,65542.0,0.000924]
[1721186064578,1.92460277,65543.0,65542.0,0.000924]
[1721186064782,1.70410277,65543.0,65542.0,0.000924]
[1721186064998,1.92460277,65543.0,65542.0,0.000924]
[1721186065372,1.61945977,65543.0,65542.0,0.000924]
[1721186065970,2.06770277,65543.0,65542.0,0.000924]
[1721186066185,2.37284577,65543.0,65542.0,0.000924]
[1721186066423,2.06770277,65543.0,65542.0,0.000924]
[1721186067134,2.11770277,65543.0,65542.0,0.000924]
[1721186067447,2.06770277,65543.0,65542.0,0.000924]
[1721186067639,2.03970277,65543.0,65542.0,0.000924]
[1721186067859,2.05370277,65543.0,65542.0,0.000924]
[1721186068042,2.25805234,65543.0,65542.0,0.000924]
[1721186068247,2.05370277,65543.0,65542.0,0.000924]
[1721186068452,1.83320277,65543.0,65542.0,0.000924]
[1721186068654,2.10370277,65543.0,65542.0,0.000924]
[1721186069077,1.88320277,65543.0,65542.0,0.000924]
[1721186069259,2.10370277,65543.0,65542.0,0.000924]
[1721186070217,2.10370277,65543.0,65531.0,0.009207]
[1721186070218,0.152597,65532.0,65531.0,0.009207]
[1721186070420,0.152597,65532.0,65515.0,0.009207]
[1721186070421,0.1605,65530.0,65515.0,0.009207]
[1721186070651,1.594206,65516.0,65515.0,0.009207]
[1721186070812,1.31781177,65516.0,65515.0,0.009207]
[1721186071015,0.89204377,65516.0,65515.0,0.0253084]
[1721186071273,0.89204377,65516.0,65515.0,0.0890084]
[1721186071274,0.86317,65516.0,65515.0,0.0890084]
[1721186071478,1.168438,65516.0,65515.0,0.0890084]
[1721186071879,0.86317,65516.0,65515.0,0.0890084]
[1721186072189,0.87717,65516.0,65515.0,0.0890084]
[1721186072367,1.01755174,65516.0,65515.0,0.072907]
[1721186073713,1.03155174,65516.0,65515.0,0.072907]
[1721186074158,1.01755174,65516.0,65515.0,0.072907]
[1721186074372,1.01755174,65516.0,65515.0,0.1515601]
[1721186074581,1.03155174,65516.0,65515.0,0.1515601]
[1721186075194,1.04555174,65516.0,65515.0,0.1515601]
[1721186075391,1.01755174,65516.0,65515.0,0.1515601]
[1721186075763,1.03155174,65516.0,65515.0,0.1515601]
[1721186076220,1.03155174,65516.0,65515.0,0.16763681]
[1721186077157,1.01755174,65516.0,65515.0,0.16763681]
[1721186077363,1.32281974,65516.0,65515.0,0.1515601]
[1721186077582,1.03155174,65516.0,65515.0,0.1515601]
[1721186077813,1.01755174,65516.0,65515.0,0.1515601]
[1721186078225,1.03155174,65516.0,65515.0,0.1515601]
[1721186078422,1.01755174,65516.0,65515.0,0.1515601]
[1721186078803,1.03155174,65516.0,65515.0,0.1515601]
[1721186079786,1.02825174,65516.0,65515.0,0.16763681]
[1721186080190,1.01425174,65516.0,65515.0,0.16763681]
[1721186080587,1.02825174,65516.0,65515.0,0.16763681]
[1721186081163,1.04225174,65516.0,65515.0,0.16763681]
[1721186081334,1.02825174,65516.0,65515.0,0.16763681]
[1721186081537,0.26838174,65516.0,65515.0,0.16763681]
[1721186081770,0.18238174,65516.0,65515.0,0.16763681]
[1721186081962,0.18238174,65516.0,65515.0,0.17208587]
[1721186083108,0.16838174,65516.0,65515.0,0.17208587]
[1721186083335,0.30701574,65516.0,65515.0,0.17208587]
[1721186083530,0.32101574,65516.0,65515.0,0.17208587]
[1721186083921,0.30701574,65516.0,65515.0,0.17208587]
[1721186084690,0.31401574,65516.0,65515.0,0.17208587]
[1721186084808,0.16138174,65516.0,65515.0,0.17208587]
[1721186085003,0.016,65516.0,65515.0,0.93081881]
[1721186085279,0.016,65516.0,65515.0,0.32472187]
[1721186085420,0.32301574,65516.0,65515.0,0.15600916]
[1721186085802,0.42301574,65516.0,65515.0,0.15600916]
[1721186086015,0.27038174,65516.0,65515.0,0.1515601]
[1721186086215,0.26997782,65516.0,65515.0,0.1515601]
[1721186086414,0.42261182,65516.0,65515.0,0.15602146]
[1721186086619,0.42261182,65516.0,65515.0,0.18780901]
[1721186087386,0.40701574,65516.0,65515.0,0.18780901]
[1721186087551,0.41901574,65516.0,65515.0,0.18780901]
[1721186088110,0.26638174,65516.0,65515.0,0.18780901]
[1721186088286,0.26638174,65516.0,65515.0,0.79835501]
[1721186088287,0.021,65516.0,65515.0,0.79835501]
[1721186088483,0.1,65520.0,65519.0,0.152627]
[1721186088716,0.25438174,65520.0,65519.0,0.3850552]
[1721186088921,0.25438174,65520.0,65519.0,0.38950744]
[1721186089966,0.25438174,65520.0,65519.0,0.69476144]
[1721186090563,0.1,65520.0,65519.0,0.69476144]
[1721186090708,0.1,65520.0,65519.0,1.00001544]
[1721186090914,0.1,65520.0,65519.0,1.30526944]
[1721186091128,0.1,65520.0,65519.0,1.48200517]
[1721186091335,0.107,65520.0,65519.0,1.48200517]
[1721186091547,0.107,65520.0,65519.0,1.43200517]
[1721186091748,0.0404,65520.0,65519.0,1.48200517]
[1721186092587,0.04987204,65535.0,65534.0,0.906262]
[1721186092798,0.46304871,65547.0,65538.0,0.305164]
[1721186092799,0.152567,65545.0,65538.0,0.305164]
[1721186093001,0.46304871,65547.0,65539.0,0.29588]
[1721186093002,0.30695074,65544.0,65539.0,0.29588]
[1721186093200,0.15438174,65544.0,65540.0,0.152577]
[1721186093565,0.15438174,65544.0,65539.0,0.14768617]
[1721186093764,0.15438174,65544.0,65541.0,0.15695661]
[1721186093999,0.15438174,65544.0,65543.0,0.152571]
[1721186094544,0.15438174,65544.0,65543.0,0.15694185]
[1721186094762,0.16838174,65544.0,65543.0,0.15694185]
[1721186094964,0.16838174,65544.0,65543.0,0.29634185]
[1721186095169,0.16838174,65544.0,65543.0,0.3281294]
[1721186095518,0.028,65544.0,65543.0,0.6342724]
[1721186095851,0.028,65544.0,65543.0,1.2445584]
[1721186096056,0.028,65544.0,65543.0,1.37124176]
[1721186096257,0.028,65544.0,65543.0,1.2445584]
[1721186096480,0.028,65544.0,65543.0,1.4212375]
[1721186096857,0.028,65544.0,65543.0,1.7263805]
[1721186097069,0.00084,65562.0,65556.0,0.762705]
[1721186097240,0.00084,65562.0,65561.0,0.457588]
[1721186097441,0.00084,65562.0,65561.0,0.903247]
[1721186097659,0.00084,65562.0,65561.0,0.90756072]
[1721186097832,0.20186521,65572.0,65561.0,0.90756072]
[1721186097833,0.04935921,65572.0,65561.0,1.06009072]
[1721186098045,0.20374095,65572.0,65571.0,0.295906]
[1721186098216,0.15438174,65572.0,65571.0,0.3254966]
[1721186098419,0.15438174,65572.0,65571.0,0.32978737]
[1721186099030,0.15438174,65572.0,65571.0,0.17728137]
[1721186099418,0.15438174,65572.0,65571.0,0.00429077]
[1721186099419,0.61189374,65572.0,65571.0,0.00429077]
[1721186099843,0.152506,65571.0,65567.0,0.0616]
[1721186100015,0.45939974,65570.0,65567.0,0.0616]
[1721186100220,0.457539,65568.0,65567.0,0.0616]
[1721186100466,0.457546,65567.0,65566.0,0.0818]
[1721186100662,0.457546,65567.0,65561.0,0.001]
[1721186100663,0.762635,65562.0,65561.0,0.001]
[1721186100871,0.91701674,65562.0,65561.0,0.001]
[1721186101137,0.91701674,65562.0,65554.0,0.0806]
[1721186101138,0.15438174,65562.0,65554.0,0.0806]
[1721186101367,0.15438174,65562.0,65550.0,0.065]
[1721186101368,0.305074,65558.0,65550.0,0.065]
[1721186101566,0.152542,65556.0,65551.0,0.00277097]
[1721186101942,0.152542,65556.0,65552.0,0.0280926]
[1721186101943,0.15438174,65555.0,65552.0,0.0280926]
[1721186102086,0.152548,65553.0,65552.0,0.0280926]
[1721186102296,0.15438174,65555.0,65554.0,0.152545]
[1721186102724,0.152509,65570.0,65563.0,0.457575]
[1721186102926,0.305834,65575.0,65561.0,0.153528]
[1721186102927,0.152516,65567.0,65561.0,0.153528]
[1721186103243,0.152511,65569.0,65562.0,0.0458589]
[1721186103449,0.15438174,65568.0,65562.0,0.0458589]
[1721186103651,0.15438174,65568.0,65566.0,0.0805]
[1721186103869,0.04988466,65575.0,65569.0,0.152508]
[1721186104069,0.04988466,65575.0,65567.0,0.152513]
[1721186104070,0.15438174,65574.0,65567.0,0.152513]
[1721186104269,0.15438174,65574.0,65568.0,0.00277097]
[1721186104270,0.30501,65572.0,65568.0,0.00277097]
[1721186104407,0.305017,65570.0,65567.0,0.00277097]
[1721186104601,0.30689274,65569.0,65568.0,0.0298693]
[1721186105270,0.152518,65566.0,65562.0,0.00377097]
[1721186105651,0.152516,65567.0,65563.0,0.00426691]
[1721186105850,0.30689774,65567.0,65564.0,0.00277097]
[1721186106275,0.15438174,65567.0,65565.0,0.15678035]
[1721186106453,0.15438174,65567.0,65566.0,0.00277097]
[1721186106638,0.15438174,65567.0,65566.0,0.0798375]
[1721186106833,0.15438174,65567.0,65566.0,0.08132661]
[1721186107038,0.305006,65573.0,65566.0,0.08132661]
[1721186107039,0.152503,65573.0,65566.0,0.08132661]
[1721186107249,0.15438174,65572.0,65570.0,0.152508]
[1721186107454,0.15438174,65572.0,65571.0,0.14767097]
[1721186107663,0.15438174,65572.0,65571.0,0.21790186]
[1721186108065,0.61189374,65572.0,65571.0,0.07300186]
[1721186108274,0.61189374,65572.0,65571.0,0.0042487]
[1721186108275,0.91690174,65572.0,65571.0,0.0042487]
[1721186108491,0.152513,65569.0,65566.0,0.00277097]
[1721186108692,0.30689474,65568.0,65566.0,0.00277097]
[1721186109032,0.30689474,65568.0,65567.0,0.0042578]
[1721186109580,0.61192074,65568.0,65567.0,0.0042578]
[1721186109751,0.61192074,65568.0,65567.0,0.01945068]
[1721186110999,0.30689474,65568.0,65567.0,0.0042578]
[1721186111211,0.30689474,65568.0,65562.0,0.00277097]
[1721186111212,0.152516,65567.0,65563.0,0.152524]
[1721186111419,0.30689774,65567.0,65564.0,0.00277097]
[1721186111582,0.30689774,65567.0,65564.0,0.0070356]
[1721186112472,0.15438174,65567.0,65564.0,0.1595576]
[1721186112690,0.15438174,65567.0,65565.0,0.06095106]
[1721186112896,0.15438174,65567.0,65566.0,0.00277097]
[1721186113094,0.15438174,65567.0,65566.0,0.00703105]
[1721186113337,0.15438174,65567.0,65566.0,0.00426008]
[1721186113662,0.15438174,65567.0,65566.0,0.00703105]
[1721186113898,0.15438174,65567.0,65566.0,0.06321599]
[1721186114313,0.1,65581.0,65568.0,0.1449]
[1721186114506,0.20420527,65578.0,65576.0,0.152493]
[1721186114728,0.20420527,65578.0,65577.0,0.064]
[1721186114938,0.20420527,65578.0,65577.0,0.06867325]
[1721186114939,0.15438174,65578.0,65577.0,0.06867325]
[1721186115120,0.15438174,65578.0,65577.0,0.12937928]
[1721186115507,0.15438174,65578.0,65577.0,0.28187128]
[1721186115866,0.152478,65583.0,65577.0,0.43436328]
[1721186116070,0.15438174,65582.0,65577.0,0.43436328]
[1721186116274,0.00084,65584.0,65583.0,0.233978]
[1721186116541,0.00084,65584.0,65583.0,0.2878718]
[1721186116743,0.00084,65584.0,65583.0,0.59717312]
[1721186117515,0.00084,65584.0,65583.0,0.29221612]
[1721186117920,0.00084,65584.0,65583.0,0.59717312]
[1721186118155,0.00084,65584.0,65583.0,0.90213012]
[1721186118679,0.00084,65584.0,65583.0,1.44710287]
[1721186119175,1e-08,65586.0,65585.0,1.117314]
[1721186119347,1e-08,65586.0,65585.0,1.54286835]
[1721186119548,1e-08,65586.0,65585.0,1.49719488]
[1721186119953,1e-08,65586.0,65585.0,1.70157662]
[1721186120298,1e-08,65586.0,65585.0,2.63991429]
[1721186120497,0.00084,65597.0,65596.0,0.601944]
[1721186120700,0.153285,65597.0,65596.0,0.21729078]
[1721186120872,0.458176,65597.0,65596.0,0.13088939]
[1721186121074,0.91744874,65597.0,65596.0,0.13087693]
[1721186121396,0.91744874,65597.0,65596.0,0.12659232]
[1721186121596,0.152459,65592.0,65588.0,0.0816]
[1721186121773,0.46011274,65597.0,65590.0,0.457386]
[1721186121774,0.15438174,65591.0,65590.0,0.457386]
[1721186121975,0.00084,65597.0,65590.0,0.457386]
[1721186121976,0.00084,65597.0,65591.0,0.304918]
[1721186122183,0.00084,65597.0,65590.0,0.20870489]
[1721186122184,0.00084,65597.0,65596.0,0.457344]
[1721186122343,0.00084,65597.0,65596.0,0.58823891]
[1721186122745,0.00084,65597.0,65596.0,0.95713491]
[1721186122943,0.00084,65597.0,65596.0,1.39363091]
[1721186123146,0.00084,65597.0,65596.0,1.49798048]
[1721186123560,0.00837,65609.0,65608.0,0.7621]
[1721186123784,0.00837,65609.0,65608.0,0.8887103]
[1721186124051,0.00837,65609.0,65608.0,0.90655733]
[1721186124227,0.00837,65609.0,65608.0,1.3379652]
[1721186124453,0.00837,65609.0,65608.0,1.64191087]
[1721186124818,0.00837,65609.0,65608.0,1.43376089]
[1721186125229,0.00837,65609.0,65608.0,1.64191397]
[1721186125541,0.00837,65609.0,65608.0,1.33707397]
[1721186125744,0.00837,65609.0,65608.0,1.12892089]
[1721186126540,0.00837,65609.0,65608.0,1.12992089]
[1721186127023,0.00837,65609.0,65608.0,1.00735302]
[1721186127225,0.00837,65609.0,65608.0,1.133915]
[1721186127431,0.00837,65609.0,65608.0,0.366815]
[1721186127629,0.00837,65609.0,65608.0,0.824075]
[1721186127866,0.00837,65609.0,65608.0,1.132915]
[1721186128329,0.00837,65609.0,65608.0,1.437755]